[Event "Cappelle op 32nd"]
[Site "Cappelle la Grande"]
[Date "2016.02.17"]
[Round "6"]
[White "Berkes, Ferenc"]
[Black "Sergeev, Vladimir"]
[Result "1-0"]
[ECO "D10"]
[WhiteElo "2649"]
[BlackElo "2441"]
[Annotator "Primel,D"]
[PlyCount "133"]
[EventDate "2016.02.13"]
[EventType "swiss"]
[EventRounds "9"]
[EventCountry "FRA"]
[SourceTitle "EXT 2017"]
[Source "ChessBase"]
[SourceDate "2016.10.25"]
[SourceVersion "1"]
[SourceVersionDate "2016.10.25"]
[SourceQuality "1"]
[TimeControl "40/5400+30:1800+30"]
[WhiteClock "1:30:00"]
[BlackClock "1:30:00"]

1. d4 Nf6 2. c4 c6 3. Nc3 d5 4. e3 Bg4 5. f3 Bc8 (5... Be6 6. Nge2 dxc4 7. Nf4
Qc8 8. e4 g6 9. g4 Bg7 10. h4 h6 11. b3 cxb3 12. axb3 Nbd7 13. Nxe6 fxe6 14. e5
Qc7 15. exf6 Qg3+ 16. Ke2 Nxf6 17. Qd3 O-O-O 18. Rxa7 Kb8 19. Ra4 Rhf8 20. Rh3
Qc7 21. Be3 e5 22. Qc4 Nd5 23. Nxd5 Rxd5 24. Qd3 exd4 25. Bd2 Rf6 26. Kd1 Re6
27. f4 Qb6 28. Bg2 Rc5 29. Rc4 Rb5 30. f5 gxf5 31. gxf5 Rd6 32. Kc2 Qa7 33. Kb2
Re5 34. Ra4 Qb6 35. Bf4 {Mamedyarov,S (2757)-Kamsky,G (2705) Sofia 2007 1-0})
6. Bd3 e6 7. Nge2 c5 8. cxd5 exd5 9. O-O Nc6 10. Kh1 a6 $146 (10... cxd4 11.
exd4 Be7 12. Bc2 O-O 13. Bg5 h6 14. Bh4 b6 15. Bb3 Ba6 16. Re1 Bc4 17. Bxc4
dxc4 18. Qa4 Na5 19. Ng3 Nd5 20. Bxe7 Nxe7 21. Rad1 Nc8 22. Nf5 Nd6 23. Nxd6
Qxd6 24. Re4 Rad8 25. Rde1 a6 26. d5 Rd7 27. h3 Rfd8 28. Re8+ Kh7 29. Rxd8 Rxd8
30. Re8 Rxe8 31. Qxe8 f5 32. Qe6 Qxe6 33. dxe6 Nb7 34. Nd5 b5 35. e7 Nd6 36.
Nc7 b4 37. Nxa6 c3 38. bxc3 bxc3 39. Nb4 Kg6 40. Kg1 {Chernin,A (2565)-Meduna,
E (2485) Sochi 1986 1-0}) 11. a3 h6 12. Bb1 cxd4 13. exd4 Bd6 14. Ba2 Ne7 15.
Bf4 O-O 16. Rc1 Ng6 17. Bxd6 Qxd6 18. Qb3 Re8 19. Rfe1 Be6 20. Na4 Bd7 21. Nac3
Bc6 22. Qc2 Nf4 23. Qd2 Nxe2 24. Nxe2 Nh5 25. Kg1 Re7 26. g4 Nf6 27. Qf4 Qe6
28. Kf2 Rae8 29. Qd2 Qd6 30. Ng3 h5 31. Rxe7 Rxe7 32. Rh1 g6 33. gxh5 Nxh5 34.
Nxh5 gxh5 35. Qg5+ Kf8 36. Rg1 Re6 37. Qg3 Ke7 38. Qxd6+ Kxd6 39. Rg5 Rh6 40.
h4 Rh8 41. Bb3 a5 42. Bd1 f6 43. Rg7 Bd7 44. f4 b6 45. Bf3 Be6 46. b4 a4 47.
Rb7 Kc6 48. Ra7 Bg4 49. Rf7 Bxf3 50. Rxf6+ Kb5 51. Kxf3 Kc4 (51... Rc8 52. Re6
(52. Rh6 Rc3+) 52... Rc3+ 53. Re3 Rc1) 52. Rxb6 Kxd4 53. f5 Kc3 54. f6 Kb3 55.
Ke3 Kxa3 56. Kd4 Rd8 57. f7 Kb3 58. Rf6 Rf8 59. Kxd5 a3 60. Ke6 a2 61. Rf1 Rb8
62. b5 Kb2 63. Ke7 Rb7+ 64. Kf6 a1=Q 65. Rxa1 Kxa1 66. f8=Q Rxb5 67. Qa3+ 1-0